[Event "Live Chess"]
[Site "Chess.com"]
[Date "2024.06.02"]
[Round "-"]
[White "silunn"]
[Black "matt1979"]
[Result "1-0"]
[WhiteElo "2191"]
[BlackElo "1414"]
[TimeControl "300"]
[EndTime "3:27:20 PDT"]
[Termination "silunn won on time"]

1. e4 {[%clk 0:04:59.1]} 1... d6 {[%clk 0:04:57]} 2. Nf3 {[%clk 0:04:58]} 2...
Nf6 {[%clk 0:04:54.7]} 3. Nc3 {[%clk 0:04:56.7]} 3... e5 {[%clk 0:04:52.3]} 4.
d4 {[%clk 0:04:54.4]} 4... Nbd7 {[%clk 0:04:47.9]} 5. Bc4 {[%clk 0:04:52.1]}
5... Be7 {[%clk 0:04:46.5]} 6. a4 {[%clk 0:04:51.1]} 6... c6 {[%clk 0:04:43.4]}
7. Ng5 {[%clk 0:04:37.2]} 7... O-O {[%clk 0:04:41.6]} 8. h4 {[%clk 0:04:31.3]}
8... h6 {[%clk 0:04:40]} 9. Be3 {[%clk 0:04:23]} 9... b6 {[%clk 0:04:17]} 10. b4
{[%clk 0:03:48.4]} 10... a6 {[%clk 0:04:12.8]} 11. Qb1 {[%clk 0:03:30.6]} 11...
Bb7 {[%clk 0:04:09.7]} 12. Qa2 {[%clk 0:03:28.9]} 12... b5 {[%clk 0:03:51.7]}
13. Bxf7+ {[%clk 0:03:10.1]} 13... Kh8 {[%clk 0:03:44.7]} 14. Rd1 {[%clk
0:02:46.5]} 14... d5 {[%clk 0:03:35.2]} 15. exd5 {[%clk 0:02:38.2]} 15... Nxd5
{[%clk 0:03:32.6]} 16. Nxd5 {[%clk 0:02:29.9]} 16... cxd5 {[%clk 0:03:30.8]} 17.
Ne6 {[%clk 0:02:28.2]} 17... Qc8 {[%clk 0:03:16.6]} 18. Nxf8 {[%clk 0:02:17.6]}
18... Qxf8 {[%clk 0:03:15]} 19. Bxd5 {[%clk 0:02:16.2]} 19... Bxb4+ {[%clk
0:03:13.1]} 20. Kf1 {[%clk 0:01:57.2]} 20... Bxd5 {[%clk 0:03:07.3]} 21. Qxd5
{[%clk 0:01:56.1]} 21... Nb6 {[%clk 0:02:58.2]} 22. Qxe5 {[%clk 0:01:46.3]}
22... Nc4 {[%clk 0:02:53.1]} 23. Qf4 {[%clk 0:01:28.9]} 23... Qe8 {[%clk
0:02:45.1]} 24. axb5 {[%clk 0:01:24.5]} 24... axb5 {[%clk 0:02:43.4]} 25. Rh3
{[%clk 0:01:16.3]} 25... Ra2 {[%clk 0:02:31.1]} 26. Qf5 {[%clk 0:01:03.1]} 26...
Nd6 {[%clk 0:02:17]} 27. Qd3 {[%clk 0:00:59.4]} 27... Ra3 {[%clk 0:02:09.9]} 28.
Qe2 {[%clk 0:00:48.9]} 28... Ne4 {[%clk 0:02:01.1]} 29. Bc1 {[%clk 0:00:41.5]}
29... Rxh3 {[%clk 0:01:49.4]} 30. gxh3 {[%clk 0:00:41.4]} 30... Qg6 {[%clk
0:01:32.8]} 31. Qg4 {[%clk 0:00:35.2]} 31... Qf6 {[%clk 0:01:27.5]} 32. Qxe4
{[%clk 0:00:28.5]} 32... Be7 {[%clk 0:01:18.2]} 33. d5 {[%clk 0:00:21.9]} 33...
Bd6 {[%clk 0:01:09.3]} 34. Qg4 {[%clk 0:00:15.4]} 34... Qe5 {[%clk 0:00:59.4]}
35. Re1 {[%clk 0:00:13.9]} 35... Qxd5 {[%clk 0:00:51.7]} 36. Re8+ {[%clk
0:00:13]} 36... Kh7 {[%clk 0:00:50.6]} 37. Qe4+ {[%clk 0:00:12.7]} 37... Qxe4
{[%clk 0:00:47.5]} 38. Rxe4 {[%clk 0:00:12.6]} 38... Bb4 {[%clk 0:00:36.4]} 39.
Re6 {[%clk 0:00:12.5]} 39... Bc5 {[%clk 0:00:34.2]} 40. Re5 {[%clk 0:00:12.2]}
40... Bd4 {[%clk 0:00:30.5]} 41. Rxb5 {[%clk 0:00:12.1]} 41... Bf6 {[%clk
0:00:29.4]} 42. Bb2 {[%clk 0:00:11.8]} 42... Bxh4 {[%clk 0:00:28]} 43. Rb7
{[%clk 0:00:10.9]} 43... Kg6 {[%clk 0:00:24.7]} 44. Rxg7+ {[%clk 0:00:09.7]}
44... Kh5 {[%clk 0:00:23.7]} 45. Rg4 {[%clk 0:00:08.6]} 45... Be7 {[%clk
0:00:19.6]} 46. Bc1 {[%clk 0:00:08.1]} 46... Bd8 {[%clk 0:00:16.1]} 47. Bxh6
{[%clk 0:00:06.6]} 47... Kxh6 {[%clk 0:00:14.2]} 48. Rd4 {[%clk 0:00:06.5]}
48... Bf6 {[%clk 0:00:12.9]} 49. Rd6 {[%clk 0:00:05.9]} 49... Kg5 {[%clk
0:00:12.2]} 50. Rxf6 {[%clk 0:00:05.8]} 50... Kxf6 {[%clk 0:00:11.6]} 51. Kg2
{[%clk 0:00:05.7]} 51... Kg5 {[%clk 0:00:10.8]} 52. Kg3 {[%clk 0:00:05.6]} 52...
Kf6 {[%clk 0:00:10.1]} 53. h4 {[%clk 0:00:05.5]} 53... Kg6 {[%clk 0:00:09.4]}
54. Kg4 {[%clk 0:00:05.4]} 54... Kg7 {[%clk 0:00:08.3]} 55. h5 {[%clk
0:00:05.3]} 55... Kh6 {[%clk 0:00:07.2]} 56. f3 {[%clk 0:00:05.2]} 56... Kg7
{[%clk 0:00:06.3]} 57. Kg5 {[%clk 0:00:05.1]} 57... Kh7 {[%clk 0:00:05.2]} 58.
c4 {[%clk 0:00:04.6]} 58... Kg7 {[%clk 0:00:04.6]} 59. h6+ {[%clk 0:00:03.9]}
59... Kh7 {[%clk 0:00:03.6]} 60. Kh5 {[%clk 0:00:03.5]} 60... Kh8 {[%clk
0:00:02.4]} 61. Kg6 {[%clk 0:00:03.4]} 61... Kg8 {[%clk 0:00:01.6]} 62. c5
{[%clk 0:00:03.3]} 62... Kh8 {[%clk 0:00:00.5]} 63. c6 {[%clk 0:00:03.2]} 1-0

[Event "Live Chess"]
[Site "Chess.com"]
[Date "2024.06.02"]
[Round "-"]
[White "slava_ukr"]
[Black "elis06"]
[Result "0-1"]
[WhiteElo "2415"]
[BlackElo "2365"]
[TimeControl "300"]
[EndTime "3:27:41 PDT"]
[Termination "elis06 won on time"]

1. e4 {[%clk 0:04:53.5]} 1... c6 {[%clk 0:04:58.8]} 2. d4 {[%clk 0:04:52.3]}
2... d5 {[%clk 0:04:58.1]} 3. e5 {[%clk 0:04:51.7]} 3... Bf5 {[%clk 0:04:56]} 4.
g4 {[%clk 0:04:50.8]} 4... Be4 {[%clk 0:04:53.8]} 5. f3 {[%clk 0:04:49.9]} 5...
Bg6 {[%clk 0:04:53]} 6. h4 {[%clk 0:04:49.5]} 6... h5 {[%clk 0:04:51.8]} 7. e6
{[%clk 0:04:48.7]} 7... fxe6 {[%clk 0:04:49]} 8. Bd3 {[%clk 0:04:47]} 8... Bxd3
{[%clk 0:04:45.3]} 9. Qxd3 {[%clk 0:04:46.1]} 9... Qd6 {[%clk 0:04:42.9]} 10.
Ne2 {[%clk 0:04:44.3]} 10... e5 {[%clk 0:04:36.8]} 11. dxe5 {[%clk 0:04:42.4]}
11... Qxe5 {[%clk 0:04:35]} 12. Nc3 {[%clk 0:04:40.2]} 12... Nd7 {[%clk
0:04:28.8]} 13. Bf4 {[%clk 0:04:28.7]} 13... Qf6 {[%clk 0:04:19.4]} 14. g5
{[%clk 0:04:25.5]} 14... Qf7 {[%clk 0:04:12]} 15. O-O-O {[%clk 0:04:04.3]} 15...
e5 {[%clk 0:04:08.7]} 16. Bg3 {[%clk 0:04:02.9]} 16... O-O-O {[%clk 0:04:06.9]}
17. Rhe1 {[%clk 0:03:46.2]} 17... Bb4 {[%clk 0:03:57.9]} 18. a3 {[%clk
0:03:15.9]} 18... Bd6 {[%clk 0:03:53.5]} 19. g6 {[%clk 0:02:36.6]} 19... Qf8
{[%clk 0:03:41]} 20. Ne4 {[%clk 0:02:27.9]} 20... dxe4 {[%clk 0:03:20.6]} 21.
Qxd6 {[%clk 0:02:26.6]} 21... exf3 {[%clk 0:03:17.7]} 22. Nc3 {[%clk 0:02:10.8]}
22... Ngf6 {[%clk 0:03:03.1]} 23. Qe6 {[%clk 0:01:53.1]} 23... Qc5 {[%clk
0:02:36.6]} 24. Rxe5 {[%clk 0:01:37.4]} 24... Qb6 {[%clk 0:02:21.9]} 25. Rf5
{[%clk 0:01:22.4]} 25... Rhe8 {[%clk 0:02:18.1]} 26. Qd6 {[%clk 0:01:21]} 26...
Ne5 {[%clk 0:02:04]} 27. Qb4 {[%clk 0:00:53.4]} 27... Rxd1+ {[%clk 0:01:59.7]}
28. Nxd1 {[%clk 0:00:49.1]} 28... Qxb4 {[%clk 0:01:55.1]} 29. axb4 {[%clk
0:00:48.1]} 29... Nxg6 {[%clk 0:01:47.7]} 30. Rxf3 {[%clk 0:00:44.6]} 30... Ne5
{[%clk 0:01:46.4]} 31. Rf5 {[%clk 0:00:37.2]} 31... Neg4 {[%clk 0:01:40.9]} 32.
Rg5 {[%clk 0:00:36]} 32... Re7 {[%clk 0:01:34.6]} 33. Nf2 {[%clk 0:00:33.5]}
33... Nxf2 {[%clk 0:01:32.9]} 34. Bxf2 {[%clk 0:00:32.8]} 34... Ne4 {[%clk
0:01:27.6]} 35. Rf5 {[%clk 0:00:31.3]} 35... Nxf2 {[%clk 0:01:26.3]} 36. Rxf2
{[%clk 0:00:30.9]} 36... g6 {[%clk 0:01:23.5]} 37. Rf6 {[%clk 0:00:29.8]} 37...
Re4 {[%clk 0:01:21.1]} 38. Rxg6 {[%clk 0:00:29]} 38... Rxh4 {[%clk 0:01:20.3]}
39. c3 {[%clk 0:00:28.3]} 39... Kc7 {[%clk 0:01:19.3]} 40. Kc2 {[%clk
0:00:27.3]} 40... Rh2+ {[%clk 0:01:17.5]} 41. Kb3 {[%clk 0:00:26.5]} 41... h4
{[%clk 0:01:16.4]} 42. Rg7+ {[%clk 0:00:25.8]} 42... Kb6 {[%clk 0:01:14.1]} 43.
Rh7 {[%clk 0:00:25.1]} 43... a6 {[%clk 0:01:13]} 44. Rh5 {[%clk 0:00:23.2]}
44... Ka7 {[%clk 0:01:08]} 45. c4 {[%clk 0:00:22.1]} 45... Rh3+ {[%clk
0:01:06.5]} 46. Ka4 {[%clk 0:00:21.1]} 46... Rh2 {[%clk 0:01:05]} 47. Ka3 {[%clk
0:00:19.8]} 47... h3 {[%clk 0:01:03.6]} 48. b3 {[%clk 0:00:18.7]} 48... Rh1
{[%clk 0:01:02.7]} 49. Ka2 {[%clk 0:00:17.7]} 49... h2 {[%clk 0:01:00.8]} 50.
Kb2 {[%clk 0:00:15.7]} 50... Kb6 {[%clk 0:00:59.7]} 51. Ka2 {[%clk 0:00:14.9]}
51... Kc7 {[%clk 0:00:57.2]} 52. Kb2 {[%clk 0:00:14.2]} 52... b5 {[%clk
0:00:56.2]} 53. c5 {[%clk 0:00:13.1]} 53... Kd7 {[%clk 0:00:53.4]} 54. Rh7+
{[%clk 0:00:12.4]} 54... Ke6 {[%clk 0:00:52.6]} 55. Rh5 {[%clk 0:00:11.6]} 55...
Kf6 {[%clk 0:00:50.1]} 56. Ka2 {[%clk 0:00:10.8]} 56... Kg6 {[%clk 0:00:49]} 57.
Rh8 {[%clk 0:00:09.8]} 57... Kg7 {[%clk 0:00:45.3]} 58. Rh4 {[%clk 0:00:08.6]}
58... Rf1 {[%clk 0:00:40.6]} 59. Rxh2 {[%clk 0:00:07.6]} 59... Rf4 {[%clk
0:00:39.6]} 60. Rd2 {[%clk 0:00:06.8]} 60... Rxb4 {[%clk 0:00:37.9]} 61. Rd6
{[%clk 0:00:06]} 61... Kf7 {[%clk 0:00:36.3]} 62. Rxc6 {[%clk 0:00:05.3]} 62...
a5 {[%clk 0:00:31.9]} 63. Ra6 {[%clk 0:00:04.4]} 63... Ke7 {[%clk 0:00:30.3]}
64. Rxa5 {[%clk 0:00:03.4]} 64... Kd7 {[%clk 0:00:28.7]} 65. Ka3 {[%clk
0:00:01.9]} 65... Rd4 {[%clk 0:00:27.5]} 66. Rxb5 {[%clk 0:00:01.1]} 66... Rd1
{[%clk 0:00:26.8]} 67. b4 {[%clk 0:00:00.3]} 67... Ra1+ {[%clk 0:00:25.9]} 0-1

[Event "Live Chess"]
[Site "Chess.com"]
[Date "2024.06.02"]
[Round "-"]
[White "Victor_Bondar"]
[Black "Bradfield133"]
[Result "0-1"]
[WhiteElo "1458"]
[BlackElo "1861"]
[TimeControl "300"]
[EndTime "3:27:43 PDT"]
[Termination "Bradfield133 won by checkmate"]

1. e4 {[%clk 0:04:58.1]} 1... c5 {[%clk 0:04:58.7]} 2. c3 {[%clk 0:04:52.9]}
2... d5 {[%clk 0:04:56.8]} 3. e5 {[%clk 0:04:51]} 3... Nc6 {[%clk 0:04:54]} 4.
d4 {[%clk 0:04:50.4]} 4... cxd4 {[%clk 0:04:51.8]} 5. cxd4 {[%clk 0:04:49.6]}
5... Qb6 {[%clk 0:04:50.3]} 6. Ne2 {[%clk 0:04:24]} 6... Bf5 {[%clk 0:04:38.2]}
7. a3 {[%clk 0:04:22.2]} 7... e6 {[%clk 0:04:29.9]} 8. b4 {[%clk 0:04:20]} 8...
Rc8 {[%clk 0:04:26.8]} 9. Bb2 {[%clk 0:04:17.5]} 9... Nge7 {[%clk 0:04:17.3]}
10. Ng3 {[%clk 0:04:13.5]} 10... Bg6 {[%clk 0:03:56.5]} 11. h4 {[%clk
0:04:08.4]} 11... h5 {[%clk 0:03:52.8]} 12. Bd3 {[%clk 0:03:57.7]} 12... Bxd3
{[%clk 0:03:42.6]} 13. Qxd3 {[%clk 0:03:55.1]} 13... g6 {[%clk 0:03:41.5]} 14.
O-O {[%clk 0:03:50.7]} 14... Nf5 {[%clk 0:03:37.9]} 15. Nxf5 {[%clk 0:03:33.4]}
15... gxf5 {[%clk 0:03:35.5]} 16. Nd2 {[%clk 0:03:32.7]} 16... Be7 {[%clk
0:03:26.3]} 17. Nf3 {[%clk 0:03:30.3]} 17... Rg8 {[%clk 0:03:20.7]} 18. Kh1
{[%clk 0:03:25.8]} 18... Rg4 {[%clk 0:03:15.7]} 19. Rac1 {[%clk 0:03:16]} 19...
Bxh4 {[%clk 0:03:06]} 20. Nxh4 {[%clk 0:03:11.5]} 20... Rxh4+ {[%clk 0:03:03.7]}
21. Kg1 {[%clk 0:03:10.6]} 21... Qd8 {[%clk 0:02:58.1]} 22. g3 {[%clk
0:03:09.3]} 22... Rg4 {[%clk 0:02:55.7]} 23. Kh2 {[%clk 0:02:54.4]} 23... h4
{[%clk 0:02:49.3]} 24. Rg1 {[%clk 0:02:48.6]} 24... Qg5 {[%clk 0:02:39.5]} 25.
f3 {[%clk 0:02:41.3]} 25... Rxg3 {[%clk 0:02:37]} 26. Rxg3 {[%clk 0:02:37.6]}
26... Qxg3+ {[%clk 0:02:35.2]} 27. Kh1 {[%clk 0:02:36.8]} 27... Ke7 {[%clk
0:02:14.4]} 28. Qf1 {[%clk 0:02:14.1]} 28... Rg8 {[%clk 0:02:08.6]} 29. Rc2
{[%clk 0:02:06.9]} 29... Qf4 {[%clk 0:01:58.8]} 30. Qh3 {[%clk 0:01:44.1]} 30...
Nxd4 {[%clk 0:01:45.9]} 31. Bxd4 {[%clk 0:01:33.3]} 31... Qxd4 {[%clk
0:01:42.9]} 32. Rc7+ {[%clk 0:01:23.4]} 32... Kd8 {[%clk 0:01:40.3]} 33. Rxf7
{[%clk 0:01:14.3]} 33... Qg1# {[%clk 0:01:36.8]} 0-1

[Event "Live Chess"]
[Site "Chess.com"]
[Date "2024.06.02"]
[Round "-"]
[White "RockTroll"]
[Black "SavagePawn7"]
[Result "1-0"]
[WhiteElo "2179"]
[BlackElo "653"]
[TimeControl "300"]
[EndTime "3:27:50 PDT"]
[Termination "RockTroll won by resignation"]

1. Nf3 {[%clk 0:04:59.2]} 1... Nc6 {[%clk 0:04:55.9]} 2. g3 {[%clk 0:04:59.1]}
2... d5 {[%clk 0:04:51.8]} 3. Bg2 {[%clk 0:04:58]} 3... Nf6 {[%clk 0:04:49]} 4.
d4 {[%clk 0:04:56.1]} 4... Bg4 {[%clk 0:04:46.6]} 5. O-O {[%clk 0:04:54.4]} 5...
e6 {[%clk 0:04:29.9]} 6. c4 {[%clk 0:04:48]} 6... dxc4 {[%clk 0:04:23]} 7. Qa4
{[%clk 0:04:47.1]} 7... Bd6 {[%clk 0:04:08.9]} 8. Ne5 {[%clk 0:04:41.4]} 8...
Bxe5 {[%clk 0:03:57.4]} 9. Bxc6+ {[%clk 0:04:40.4]} 9... bxc6 {[%clk 0:03:55.2]}
10. Qxc6+ {[%clk 0:04:39.7]} 10... Qd7 {[%clk 0:03:48.1]} 11. Qxa8+ {[%clk
0:04:37.8]} 1-0

[Event "Live Chess"]
[Site "Chess.com"]
[Date "2024.06.02"]
[Round "-"]
[White "Hoogleboogle"]
[Black "NAZRIZ1977"]
[Result "0-1"]
[WhiteElo "1362"]
[BlackElo "2110"]
[TimeControl "300"]
[EndTime "3:27:55 PDT"]
[Termination "NAZRIZ1977 won by checkmate"]

1. d3 {[%clk 0:04:57]} 1... g6 {[%clk 0:04:58.7]} 2. d4 {[%clk 0:04:56.9]} 2...
Bg7 {[%clk 0:04:57.8]} 3. c4 {[%clk 0:04:50.5]} 3... Nf6 {[%clk 0:04:56]} 4. Nc3
{[%clk 0:04:48.9]} 4... O-O {[%clk 0:04:55.9]} 5. Nf3 {[%clk 0:04:46]} 5... d6
{[%clk 0:04:54.7]} 6. e4 {[%clk 0:04:42]} 6... e5 {[%clk 0:04:53.7]} 7. d5
{[%clk 0:04:40.4]} 7... a5 {[%clk 0:04:51.2]} 8. a4 {[%clk 0:04:37.5]} 8... Na6
{[%clk 0:04:49.7]} 9. Bd2 {[%clk 0:04:33.2]} 9... Nc5 {[%clk 0:04:48]} 10. Be2
{[%clk 0:04:22.6]} 10... Nfxe4 {[%clk 0:04:45.4]} 11. Nxe4 {[%clk 0:04:19.6]}
11... Nxe4 {[%clk 0:04:44.5]} 12. Qc2 {[%clk 0:04:10.8]} 12... f5 {[%clk
0:04:42.1]} 13. Bd3 {[%clk 0:04:04.1]} 13... Nxd2 {[%clk 0:04:40.6]} 14. Nxd2
{[%clk 0:03:59.3]} 14... e4 {[%clk 0:04:39.7]} 15. Be2 {[%clk 0:03:57.9]} 15...
Qf6 {[%clk 0:04:38.7]} 16. O-O {[%clk 0:03:53.6]} 16... Qxb2 {[%clk 0:04:36.4]}
17. Qxb2 {[%clk 0:03:50.7]} 17... Bxb2 {[%clk 0:04:35.2]} 18. Rab1 {[%clk
0:03:48.6]} 18... Bc3 {[%clk 0:04:32]} 19. Nb3 {[%clk 0:03:43.9]} 19... b6
{[%clk 0:04:29.3]} 20. Rbc1 {[%clk 0:03:40.8]} 20... Be5 {[%clk 0:04:27.6]} 21.
g3 {[%clk 0:03:33.8]} 21... Bd7 {[%clk 0:04:26.4]} 22. f4 {[%clk 0:03:32.5]}
22... Bg7 {[%clk 0:04:21.2]} 23. Kg2 {[%clk 0:03:24.6]} 23... Bxa4 {[%clk
0:04:19]} 24. Bd1 {[%clk 0:03:09.7]} 24... Bd7 {[%clk 0:04:16]} 25. Be2 {[%clk
0:02:54.8]} 25... a4 {[%clk 0:04:15]} 26. Na1 {[%clk 0:02:51.5]} 26... a3 {[%clk
0:04:12.9]} 27. Rc2 {[%clk 0:02:45]} 27... Bb2 {[%clk 0:04:06.2]} 28. h4 {[%clk
0:02:26.4]} 28... Ba4 {[%clk 0:04:04.3]} 29. Rd2 {[%clk 0:02:24.1]} 29... Rfe8
{[%clk 0:03:59.7]} 30. Rb1 {[%clk 0:02:09.7]} 30... e3 {[%clk 0:03:56.4]} 31.
Rdxb2 {[%clk 0:02:08.2]} 31... axb2 {[%clk 0:03:55.3]} 32. Rxb2 {[%clk
0:02:06.9]} 32... Bd1 {[%clk 0:03:51.2]} 33. Kf1 {[%clk 0:01:58.7]} 33... Bxe2+
{[%clk 0:03:48.4]} 34. Kxe2 {[%clk 0:01:57.6]} 34... Rxa1 {[%clk 0:03:48]} 35.
Rb3 {[%clk 0:01:48.1]} 35... Ra2+ {[%clk 0:03:46.3]} 36. Ke1 {[%clk 0:01:44.9]}
36... e2 {[%clk 0:03:45.8]} 37. Rb1 {[%clk 0:01:38.2]} 37... Rc2 {[%clk
0:03:44.8]} 38. Ra1 {[%clk 0:01:15.7]} 38... Rc3 {[%clk 0:03:41.8]} 39. Ra7
{[%clk 0:00:49.2]} 39... Rc1+ {[%clk 0:03:39.3]} 40. Kf2 {[%clk 0:00:46.7]}
40... e1=Q+ {[%clk 0:03:39.2]} 41. Kf3 {[%clk 0:00:45.7]} 41... Qe2# {[%clk
0:03:37.3]} 0-1

[Event "Live Chess"]
[Site "Chess.com"]
[Date "2024.06.02"]
[Round "-"]
[White "WeakOldFinished"]
[Black "FlyingChessKestrel13"]
[Result "1/2-1/2"]
[WhiteElo "2178"]
[BlackElo "2075"]
[TimeControl "300"]
[EndTime "3:28:07 PDT"]
[Termination "Game drawn by agreement"]

1. d4 {[%clk 0:04:55.1]} 1... d5 {[%clk 0:04:58.8]} 2. e4 {[%clk 0:04:53.9]}
2... dxe4 {[%clk 0:04:57.7]} 3. Nc3 {[%clk 0:04:52.8]} 3... Nf6 {[%clk
0:04:56.6]} 4. f3 {[%clk 0:04:51.6]} 4... exf3 {[%clk 0:04:55]} 5. Nxf3 {[%clk
0:04:51.5]} 5... Bg4 {[%clk 0:04:53.8]} 6. h3 {[%clk 0:04:50.3]} 6... Bxf3
{[%clk 0:04:52.3]} 7. Qxf3 {[%clk 0:04:50.2]} 7... Nc6 {[%clk 0:04:50.5]} 8. Bb5
{[%clk 0:04:48.1]} 8... e6 {[%clk 0:04:49]} 9. Bxc6+ {[%clk 0:04:46.2]} 9...
bxc6 {[%clk 0:04:48.2]} 10. Qxc6+ {[%clk 0:04:45.9]} 10... Nd7 {[%clk
0:04:47.6]} 11. O-O {[%clk 0:04:42.5]} 11... Bd6 {[%clk 0:04:45.9]} 12. Bg5
{[%clk 0:04:37.3]} 12... Qc8 {[%clk 0:04:39.6]} 13. d5 {[%clk 0:04:30.9]} 13...
O-O {[%clk 0:04:35.8]} 14. dxe6 {[%clk 0:04:27.4]} 14... fxe6 {[%clk 0:04:34.8]}
15. Ne4 {[%clk 0:04:21.8]} 15... Ne5 {[%clk 0:04:27.7]} 16. Qc3 {[%clk 0:04:07]}
16... Rf5 {[%clk 0:04:15.7]} 17. Rad1 {[%clk 0:03:44.9]} 17... Qf8 {[%clk
0:04:11.2]} 18. Ng3 {[%clk 0:03:10.1]} 18... Nf3+ {[%clk 0:04:01.7]} 19. Rxf3
{[%clk 0:03:08]} 19... Rxf3 {[%clk 0:04:00.9]} 20. Qxf3 {[%clk 0:03:01.5]} 20...
Qxf3 {[%clk 0:03:59.6]} 21. gxf3 {[%clk 0:03:01.4]} 21... Bxg3 {[%clk
0:03:58.8]} 22. Kg2 {[%clk 0:02:53.6]} 22... Bd6 {[%clk 0:03:55.8]} 23. c4
{[%clk 0:02:51.6]} 23... h6 {[%clk 0:03:51.6]} 24. Be3 {[%clk 0:02:50.3]} 24...
Be5 {[%clk 0:03:48.8]} 25. b3 {[%clk 0:02:48.1]} 25... g5 {[%clk 0:03:46.9]} 26.
Rd7 {[%clk 0:02:40.8]} 26... a5 {[%clk 0:03:35.9]} 27. Bd4 {[%clk 0:02:26.1]}
27... Bxd4 {[%clk 0:03:30.6]} 28. Rxd4 {[%clk 0:02:26]} 28... a4 {[%clk
0:03:24.8]} 29. b4 {[%clk 0:02:24.3]} 29... a3 {[%clk 0:03:21.5]} 30. Rd7 {[%clk
0:02:23.2]} 30... Ra4 {[%clk 0:03:19.3]} 31. Rxc7 {[%clk 0:02:18.4]} 31... Rxb4
{[%clk 0:03:17.9]} 32. c5 {[%clk 0:01:54.9]} 32... Rb2+ {[%clk 0:03:15.9]} 33.
Kg3 {[%clk 0:01:54.3]} 33... Rxa2 {[%clk 0:03:15.1]} 34. Ra7 {[%clk 0:01:53.2]}
34... Rc2 {[%clk 0:03:11.1]} 35. Rxa3 {[%clk 0:01:50.5]} 35... Rxc5 {[%clk
0:03:10.2]} 36. Ra7 {[%clk 0:01:49.2]} 36... Rf5 {[%clk 0:03:07.4]} 37. Kg4
{[%clk 0:01:38.2]} 37... Rf7 {[%clk 0:03:05.3]} 38. Ra6 {[%clk 0:01:35.9]} 38...
Re7 {[%clk 0:03:03.2]} 39. Kh5 {[%clk 0:01:34.3]} 39... Kg7 {[%clk 0:03:02.6]}
40. h4 {[%clk 0:01:31.9]} 40... gxh4 {[%clk 0:02:58.8]} 41. Kxh4 {[%clk
0:01:31.8]} 41... Kg6 {[%clk 0:02:57.3]} 42. Ra8 {[%clk 0:01:30.4]} 42... Rf7
{[%clk 0:02:55.6]} 43. Kg4 {[%clk 0:01:27.9]} 43... h5+ {[%clk 0:02:52.7]} 44.
Kg3 {[%clk 0:01:26.9]} 44... Rg7 {[%clk 0:02:46.2]} 45. Kf4 {[%clk 0:01:25.3]}
45... Kf6 {[%clk 0:02:44.4]} 46. Rh8 {[%clk 0:01:23.1]} 46... e5+ {[%clk
0:02:42.9]} 47. Ke4 {[%clk 0:01:21.3]} 47... Rg5 {[%clk 0:02:41.6]} 48. f4
{[%clk 0:01:15.1]} 48... exf4 {[%clk 0:02:33.5]} 49. Kxf4 {[%clk 0:01:15]} 49...
Ra5 {[%clk 0:02:32.6]} 50. Rf8+ {[%clk 0:01:11.5]} 50... Kg6 {[%clk 0:02:30.4]}
51. Rb8 {[%clk 0:01:10]} 51... Ra4+ {[%clk 0:02:28.6]} 52. Kg3 {[%clk
0:01:09.1]} 52... Kg5 {[%clk 0:02:25.5]} 53. Rb5+ {[%clk 0:01:07.4]} 53... Kg6
{[%clk 0:02:23.2]} 54. Rc5 {[%clk 0:01:06.1]} 1/2-1/2

[Event "Live Chess"]
[Site "Chess.com"]
[Date "2024.06.02"]
[Round "-"]
[White "80Times"]
[Black "GerardATHart"]
[Result "1-0"]
[WhiteElo "1905"]
[BlackElo "1367"]
[TimeControl "300"]
[EndTime "3:28:44 PDT"]
[Termination "80Times won by resignation"]

1. e4 {[%clk 0:04:57.9]} 1... e5 {[%clk 0:04:58.3]} 2. Bc4 {[%clk 0:04:57]} 2...
Nf6 {[%clk 0:04:56.4]} 3. d4 {[%clk 0:04:56.1]} 3... exd4 {[%clk 0:04:41.4]} 4.
Nf3 {[%clk 0:04:52.9]} 4... c5 {[%clk 0:04:39.1]} 5. e5 {[%clk 0:04:48.7]} 5...
Qe7 {[%clk 0:04:36.6]} 6. O-O {[%clk 0:04:47.4]} 6... Ng4 {[%clk 0:04:24.5]} 7.
h3 {[%clk 0:04:45.9]} 7... h5 {[%clk 0:04:20.7]} 8. Bg5 {[%clk 0:04:41.7]} 8...
f6 {[%clk 0:04:17.3]} 9. exf6 {[%clk 0:04:39.7]} 9... gxf6 {[%clk 0:04:15.7]}
10. Re1 {[%clk 0:04:39.1]} 10... Ne5 {[%clk 0:04:14]} 11. Nxe5 {[%clk
0:04:37.2]} 11... Kd8 {[%clk 0:03:52.2]} 12. Nf7+ {[%clk 0:04:34.1]} 1-0